[Event "Late-Titled-Tuesday-Blitz-September-26-2023"]
[Site "Chess.com"]
[Date "2023.09.26"]
[Round "5"]
[White "Mikhail_Bryakin"]
[Black "Orest_Vovk"]
[Result "1-0"]
[WhiteElo "2847"]
[BlackElo "2578"]
[TimeControl "180+1"]
[EndTime "14:53:55 PDT"]
[Termination "Mikhail_Bryakin won by resignation"]

1. e4 {[%clk 0:03:00.9]} 1... g5 {[%clk 0:02:56.8]} 2. Qh5 {[%clk 0:02:59.7]}
2... Nf6 {[%clk 0:02:46.2]} 3. Qxg5 {[%clk 0:02:58.7]} 3... Nxe4 {[%clk
0:02:39.7]} 4. Qh4 {[%clk 0:02:58.9]} 4... d5 {[%clk 0:02:33.8]} 5. Nc3 {[%clk
0:02:58.8]} 5... Nf6 {[%clk 0:02:24.1]} 6. d4 {[%clk 0:02:55.2]} 6... Rg8 {[%clk
0:02:21.3]} 7. h3 {[%clk 0:02:49.8]} 7... Bf5 {[%clk 0:02:12.8]} 8. Bg5 {[%clk
0:01:53]} 8... Ne4 {[%clk 0:02:04.6]} 9. Nxe4 {[%clk 0:01:42.2]} 9... Bxe4
{[%clk 0:02:05.5]} 10. O-O-O {[%clk 0:01:38.3]} 10... Qd6 {[%clk 0:01:54]} 11.
f3 {[%clk 0:01:37.5]} 11... Rxg5 {[%clk 0:01:27.5]} 12. fxe4 {[%clk 0:01:34.4]}
12... Qh6 {[%clk 0:01:27.4]} 13. Qxh6 {[%clk 0:01:26.4]} 13... Bxh6 {[%clk
0:01:28.3]} 14. exd5 {[%clk 0:01:24.7]} 14... Rxg2+ {[%clk 0:00:54.8]} 15. Kb1
{[%clk 0:01:24.9]} 15... Rd2 {[%clk 0:00:54.9]} 16. Rxd2 {[%clk 0:01:23.8]}
16... Bxd2 {[%clk 0:00:55.8]} 17. Nf3 {[%clk 0:01:24.4]} 17... Be3 {[%clk
0:00:52.9]} 18. c3 {[%clk 0:01:24.5]} 18... Nd7 {[%clk 0:00:50.1]} 19. Kc2
{[%clk 0:01:23.5]} 19... O-O-O {[%clk 0:00:46.8]} 20. Bd3 {[%clk 0:01:22.9]}
20... Nf6 {[%clk 0:00:40.4]} 21. Ne5 {[%clk 0:01:19.7]} 21... Nxd5 {[%clk
0:00:34.6]} 22. Bxh7 {[%clk 0:01:17.9]} 22... f6 {[%clk 0:00:30.1]} 23. Ng4
{[%clk 0:01:17.8]} 23... Bg5 {[%clk 0:00:21.8]} 24. Bf5+ {[%clk 0:01:18.4]}
24... Kb8 {[%clk 0:00:21.5]} 25. h4 {[%clk 0:01:12.7]} 25... Ne3+ {[%clk
0:00:21.5]} 26. Nxe3 {[%clk 0:01:12.7]} 26... Bxe3 {[%clk 0:00:22.4]} 27. h5
{[%clk 0:01:13.3]} 27... e5 {[%clk 0:00:16.4]} 28. h6 {[%clk 0:01:09.3]} 28...
exd4 {[%clk 0:00:12.6]} 29. h7 {[%clk 0:01:10.2]} 29... Rh8 {[%clk 0:00:03.9]}
30. Rh4 {[%clk 0:01:01.5]} 30... c5 {[%clk 0:00:04.1]} 31. Re4 {[%clk
0:01:00.2]} 31... Kc7 {[%clk 0:00:03.4]} 32. Re7+ {[%clk 0:01:00.9]} 32... Kd6
{[%clk 0:00:03.6]} 33. Rg7 {[%clk 0:01:01.8]} 33... c4 {[%clk 0:00:01.9]} 34.
cxd4 {[%clk 0:01:01.5]} 34... Bxd4 {[%clk 0:00:01.9]} 35. Rg8 {[%clk 0:01:02.2]}
35... Ke5 {[%clk 0:00:01.9]} 36. Rxh8 {[%clk 0:01:02.1]} 36... Kxf5 {[%clk
0:00:02.8]} 37. Rg8 {[%clk 0:01:02.4]} 1-0

[Event "Late-Titled-Tuesday-Blitz-September-26-2023"]
[Site "Chess.com"]
[Date "2023.09.26"]
[Round "5"]
[White "realmadridfc123"]
[Black "victormago"]
[Result "1-0"]
[WhiteElo "2790"]
[BlackElo "2526"]
[TimeControl "180+1"]
[EndTime "14:54:00 PDT"]
[Termination "realmadridfc123 won by resignation"]

1. c4 {[%clk 0:02:58.2]} 1... e5 {[%clk 0:02:58.6]} 2. Nc3 {[%clk 0:02:58.1]}
2... Nc6 {[%clk 0:02:58.5]} 3. g3 {[%clk 0:02:56.9]} 3... g6 {[%clk 0:02:57.9]}
4. Bg2 {[%clk 0:02:57.4]} 4... Bg7 {[%clk 0:02:57.8]} 5. e3 {[%clk 0:02:58]}
5... f5 {[%clk 0:02:57.9]} 6. Nge2 {[%clk 0:02:57.4]} 6... Nf6 {[%clk
0:02:57.9]} 7. O-O {[%clk 0:02:57.7]} 7... O-O {[%clk 0:02:57.4]} 8. b3 {[%clk
0:02:55.9]} 8... d6 {[%clk 0:02:55.9]} 9. Bb2 {[%clk 0:02:56.1]} 9... a6 {[%clk
0:02:54.3]} 10. a3 {[%clk 0:02:41.7]} 10... h6 {[%clk 0:02:51.8]} 11. b4 {[%clk
0:02:41.7]} 11... e4 {[%clk 0:02:43.3]} 12. d3 {[%clk 0:02:38.6]} 12... exd3
{[%clk 0:02:41.2]} 13. Qxd3 {[%clk 0:02:39.5]} 13... Ne5 {[%clk 0:02:41.4]} 14.
Qd1 {[%clk 0:02:38]} 14... Kh7 {[%clk 0:02:41]} 15. Nd5 {[%clk 0:02:26.6]} 15...
Nxc4 {[%clk 0:02:28.9]} 16. Bxf6 {[%clk 0:02:22.8]} 16... Bxf6 {[%clk
0:02:27.6]} 17. Nxf6+ {[%clk 0:02:23.5]} 17... Qxf6 {[%clk 0:02:24.8]} 18. Rc1
{[%clk 0:02:14.1]} 18... Nxa3 {[%clk 0:01:55]} 19. Rxc7+ {[%clk 0:02:09.7]}
19... Rf7 {[%clk 0:01:55.2]} 20. Rxf7+ {[%clk 0:02:00.9]} 20... Qxf7 {[%clk
0:01:55.3]} 21. Qxd6 {[%clk 0:02:01.5]} 21... Nb5 {[%clk 0:01:42.7]} 22. Qd3
{[%clk 0:01:20.9]} 22... Be6 {[%clk 0:01:37.8]} 23. Rc1 {[%clk 0:01:20.8]} 23...
Qe7 {[%clk 0:01:31.1]} 24. Nf4 {[%clk 0:01:13.1]} 24... Bf7 {[%clk 0:01:29.1]}
25. h4 {[%clk 0:01:13.2]} 25... Rd8 {[%clk 0:01:27.6]} 26. Qb1 {[%clk
0:01:06.2]} 26... Na3 {[%clk 0:01:14.1]} 27. Qa1 {[%clk 0:01:02.3]} 27... Nc4
{[%clk 0:01:08.4]} 28. h5 {[%clk 0:00:52.2]} 28... g5 {[%clk 0:01:04]} 29. Ng6
{[%clk 0:00:52.4]} 29... Qd6 {[%clk 0:00:20.5]} 30. Bxb7 {[%clk 0:00:49.7]}
30... Bxg6 {[%clk 0:00:19.8]} 31. hxg6+ {[%clk 0:00:49.1]} 31... Kxg6 {[%clk
0:00:19.3]} 32. Rxc4 {[%clk 0:00:48.6]} 1-0

[Event "Late-Titled-Tuesday-Blitz-September-26-2023"]
[Site "Chess.com"]
[Date "2023.09.26"]
[Round "5"]
[White "wild3000"]
[Black "Zavgorodniy_Sergiy"]
[Result "1-0"]
[WhiteElo "2344"]
[BlackElo "2578"]
[TimeControl "180+1"]
[EndTime "14:54:00 PDT"]
[Termination "wild3000 won by resignation"]

1. d4 {[%clk 0:02:42.4]} 1... c5 {[%clk 0:03:00.9]} 2. d5 {[%clk 0:02:41.2]}
2... d6 {[%clk 0:03:01.3]} 3. e4 {[%clk 0:02:39.7]} 3... a6 {[%clk 0:03:02.2]}
4. a4 {[%clk 0:02:39.3]} 4... g6 {[%clk 0:03:02.8]} 5. h4 {[%clk 0:02:37.7]}
5... h5 {[%clk 0:03:02.1]} 6. c4 {[%clk 0:02:33.9]} 6... Bg7 {[%clk 0:03:01.9]}
7. Nf3 {[%clk 0:02:31.7]} 7... e6 {[%clk 0:03:02.2]} 8. Nc3 {[%clk 0:02:27.9]}
8... Ne7 {[%clk 0:02:58.6]} 9. Bg5 {[%clk 0:02:21.2]} 9... f6 {[%clk 0:02:57.5]}
10. Be3 {[%clk 0:02:17.4]} 10... e5 {[%clk 0:02:58]} 11. a5 {[%clk 0:02:12.4]}
11... Bg4 {[%clk 0:02:57.6]} 12. Be2 {[%clk 0:02:05.2]} 12... Nd7 {[%clk
0:02:57.8]} 13. Nd2 {[%clk 0:02:03]} 13... Bxe2 {[%clk 0:02:57.1]} 14. Nxe2
{[%clk 0:01:57.7]} 14... f5 {[%clk 0:02:58]} 15. Bg5 {[%clk 0:01:55.5]} 15...
O-O {[%clk 0:02:43.2]} 16. f3 {[%clk 0:01:48]} 16... Rf7 {[%clk 0:02:37.8]} 17.
Qc2 {[%clk 0:01:39.7]} 17... f4 {[%clk 0:02:32.3]} 18. Nc3 {[%clk 0:01:27]}
18... Qc7 {[%clk 0:02:30.6]} 19. Qa4 {[%clk 0:01:18.2]} 19... Nf8 {[%clk
0:02:29.7]} 20. b4 {[%clk 0:01:13.8]} 20... Nh7 {[%clk 0:02:25.7]} 21. b5 {[%clk
0:01:05.2]} 21... Nxg5 {[%clk 0:02:24.9]} 22. hxg5 {[%clk 0:01:06.1]} 22... Nc8
{[%clk 0:02:19.6]} 23. bxa6 {[%clk 0:01:04.2]} 23... bxa6 {[%clk 0:02:19]} 24.
Rb1 {[%clk 0:01:03.7]} 24... Rb8 {[%clk 0:02:14.7]} 25. Ke2 {[%clk 0:01:03.5]}
25... Bf8 {[%clk 0:02:09.9]} 26. Rxb8 {[%clk 0:01:02.3]} 26... Qxb8 {[%clk
0:02:10.8]} 27. Qc6 {[%clk 0:00:58.3]} 27... Qb2 {[%clk 0:02:04.1]} 28. Na4
{[%clk 0:00:53.2]} 28... Qb7 {[%clk 0:01:56.1]} 29. Qe8 {[%clk 0:00:41.6]} 29...
Qd7 {[%clk 0:01:45.7]} 30. Qxd7 {[%clk 0:00:40.9]} 30... Rxd7 {[%clk 0:01:46.6]}
31. Rb1 {[%clk 0:00:41]} 31... Kf7 {[%clk 0:01:29.1]} 32. Rb8 {[%clk 0:00:39.8]}
32... Rc7 {[%clk 0:01:23.4]} 33. Nb6 {[%clk 0:00:38.8]} 33... Na7 {[%clk
0:01:19.4]} 34. Nb3 {[%clk 0:00:34]} 34... Be7 {[%clk 0:01:19.7]} 35. Na8 {[%clk
0:00:30]} 35... Rc8 {[%clk 0:01:16.8]} 36. Rxc8 {[%clk 0:00:29.7]} 36... Nxc8
{[%clk 0:01:17.7]} 37. Nc7 {[%clk 0:00:30.1]} 37... Bxg5 {[%clk 0:01:12.8]} 38.
Nxa6 {[%clk 0:00:29.9]} 38... Bd8 {[%clk 0:01:13.5]} 39. Nb8 {[%clk 0:00:29.6]}
39... Bc7 {[%clk 0:01:12.5]} 40. Nc6 {[%clk 0:00:28.9]} 40... Ne7 {[%clk
0:01:09.4]} 41. a6 {[%clk 0:00:25.9]} 41... Nxc6 {[%clk 0:01:09.4]} 42. dxc6
{[%clk 0:00:26]} 42... Bb6 {[%clk 0:01:10]} 43. c7 {[%clk 0:00:24.7]} 43... Bxc7
{[%clk 0:00:58.5]} 44. a7 {[%clk 0:00:24.4]} 1-0

[Event "Late-Titled-Tuesday-Blitz-September-26-2023"]
[Site "Chess.com"]
[Date "2023.09.26"]
[Round "5"]
[White "Mikhail_Golubev"]
[Black "ATM622"]
[Result "1-0"]
[WhiteElo "2594"]
[BlackElo "2428"]
[TimeControl "180+1"]
[EndTime "14:54:04 PDT"]
[Termination "Mikhail_Golubev won on time"]

1. e4 {[%clk 0:02:58.6]} 1... c6 {[%clk 0:02:59]} 2. d4 {[%clk 0:02:56.5]} 2...
d5 {[%clk 0:02:59.9]} 3. Nc3 {[%clk 0:02:56.2]} 3... dxe4 {[%clk 0:02:59.8]} 4.
Nxe4 {[%clk 0:02:56.9]} 4... Bf5 {[%clk 0:02:59.6]} 5. Ng3 {[%clk 0:02:56.2]}
5... Bg6 {[%clk 0:02:58.1]} 6. c3 {[%clk 0:02:56.8]} 6... Nd7 {[%clk 0:02:54.9]}
7. Nh3 {[%clk 0:02:54.1]} 7... e5 {[%clk 0:02:49.1]} 8. f4 {[%clk 0:02:40.3]}
8... exf4 {[%clk 0:02:38.6]} 9. Nxf4 {[%clk 0:02:40.2]} 9... Bd6 {[%clk
0:02:20]} 10. Bc4 {[%clk 0:02:25.5]} 10... Ngf6 {[%clk 0:02:17.3]} 11. Qe2+
{[%clk 0:02:18.8]} 11... Qe7 {[%clk 0:02:16.5]} 12. Qxe7+ {[%clk 0:02:12.2]}
12... Bxe7 {[%clk 0:02:17.4]} 13. Bd2 {[%clk 0:02:06.8]} 13... O-O {[%clk
0:02:14.7]} 14. O-O-O {[%clk 0:02:04.8]} 14... c5 {[%clk 0:02:14.1]} 15. Rhe1
{[%clk 0:01:29.3]} 15... Bd6 {[%clk 0:02:09.5]} 16. dxc5 {[%clk 0:01:29]} 16...
Nxc5 {[%clk 0:02:06.1]} 17. Nxg6 {[%clk 0:01:22.4]} 17... hxg6 {[%clk 0:02:07]}
18. Be3 {[%clk 0:01:18.8]} 18... Nce4 {[%clk 0:01:17.9]} 19. Nxe4 {[%clk
0:01:13.9]} 19... Nxe4 {[%clk 0:01:14.1]} 20. Rd4 {[%clk 0:01:09.9]} 20... Rfe8
{[%clk 0:01:06.1]} 21. Bd3 {[%clk 0:01:08.2]} 21... Bxh2 {[%clk 0:00:37.6]} 22.
Rxe4 {[%clk 0:01:03.1]} 22... Red8 {[%clk 0:00:36.5]} 23. Bc4 {[%clk 0:00:58.6]}
23... Bd6 {[%clk 0:00:32.7]} 24. Rf1 {[%clk 0:00:52.6]} 24... Rd7 {[%clk
0:00:26.6]} 25. Rh4 {[%clk 0:00:38.9]} 25... Re8 {[%clk 0:00:07.3]} 26. Rfh1
{[%clk 0:00:36.4]} 26... Kf8 {[%clk 0:00:07.5]} 27. Bg5 {[%clk 0:00:33.2]} 1-0

[Event "Late-Titled-Tuesday-Blitz-September-26-2023"]
[Site "Chess.com"]
[Date "2023.09.26"]
[Round "5"]
[White "FMVolodymyrSakun"]
[Black "cukus"]
[Result "1-0"]
[WhiteElo "2635"]
[BlackElo "2373"]
[TimeControl "180+1"]
[EndTime "14:54:10 PDT"]
[Termination "FMVolodymyrSakun won on time"]

1. e4 {[%clk 0:03:00.9]} 1... e5 {[%clk 0:02:32.4]} 2. d4 {[%clk 0:02:54.1]}
2... exd4 {[%clk 0:02:30.7]} 3. Nf3 {[%clk 0:02:54.4]} 3... Nc6 {[%clk
0:02:27.6]} 4. Bc4 {[%clk 0:02:54.4]} 4... Nf6 {[%clk 0:02:25]} 5. e5 {[%clk
0:02:54.3]} 5... d5 {[%clk 0:02:24.9]} 6. Bb5 {[%clk 0:02:54.5]} 6... Ne4 {[%clk
0:02:23.8]} 7. Nxd4 {[%clk 0:02:54.8]} 7... Bc5 {[%clk 0:02:23.3]} 8. Be3 {[%clk
0:02:54.6]} 8... O-O {[%clk 0:02:17.2]} 9. Nxc6 {[%clk 0:02:49.7]} 9... bxc6
{[%clk 0:02:16.1]} 10. Bxc5 {[%clk 0:02:49.2]} 10... Nxc5 {[%clk 0:02:09.4]} 11.
Bxc6 {[%clk 0:02:49.2]} 11... Rb8 {[%clk 0:02:09.1]} 12. O-O {[%clk 0:02:34.4]}
12... d4 {[%clk 0:01:51]} 13. Nd2 {[%clk 0:02:14.3]} 13... Rb6 {[%clk
0:01:43.5]} 14. Bf3 {[%clk 0:02:12]} 14... Rh6 {[%clk 0:01:31.9]} 15. g3 {[%clk
0:02:03.4]} 15... Qg5 {[%clk 0:01:26.4]} 16. Re1 {[%clk 0:01:56.6]} 16... Ne6
{[%clk 0:01:18.5]} 17. Bg2 {[%clk 0:01:46.1]} 17... Qg6 {[%clk 0:00:49.4]} 18.
Ne4 {[%clk 0:01:27.4]} 18... Ng5 {[%clk 0:00:21.8]} 19. Nxg5 {[%clk 0:01:23]}
19... Qxg5 {[%clk 0:00:21.9]} 20. Qxd4 {[%clk 0:01:22.9]} 20... Rd8 {[%clk
0:00:18.7]} 21. Qe3 {[%clk 0:01:13.7]} 21... Qh5 {[%clk 0:00:17.9]} 22. h4
{[%clk 0:01:10.1]} 22... Bf5 {[%clk 0:00:15.6]} 23. Qg5 {[%clk 0:00:58.6]} 23...
Qxg5 {[%clk 0:00:13.4]} 24. hxg5 {[%clk 0:00:59.5]} 24... Rg6 {[%clk 0:00:13.7]}
25. Rad1 {[%clk 0:00:59.1]} 25... Rxd1 {[%clk 0:00:09.8]} 26. Rxd1 {[%clk
0:00:59.2]} 26... Kf8 {[%clk 0:00:10.2]} 27. f4 {[%clk 0:00:53.2]} 27... Ke7
{[%clk 0:00:07.6]} 28. c3 {[%clk 0:00:50.6]} 28... Ra6 {[%clk 0:00:05.3]} 29. a3
{[%clk 0:00:50.5]} 29... c5 {[%clk 0:00:05]} 30. Bd5 {[%clk 0:00:47.6]} 30...
Rb6 {[%clk 0:00:04.1]} 31. Rd2 {[%clk 0:00:47.4]} 31... Rb8 {[%clk 0:00:04]} 32.
Kf2 {[%clk 0:00:46.9]} 32... Rd8 {[%clk 0:00:03.9]} 33. Ke3 {[%clk 0:00:47.1]}
33... Be6 {[%clk 0:00:02.3]} 34. Bxe6 {[%clk 0:00:45.7]} 1-0

[Event "Late-Titled-Tuesday-Blitz-September-26-2023"]
[Site "Chess.com"]
[Date "2023.09.26"]
[Round "5"]
[White "The_Straightforward_Rook"]
[Black "jamengrand"]
[Result "1-0"]
[WhiteElo "2524"]
[BlackElo "2262"]
[TimeControl "180+1"]
[EndTime "14:54:13 PDT"]
[Termination "The_Straightforward_Rook won by checkmate"]

1. d4 {[%clk 0:03:00.9]} 1... d5 {[%clk 0:02:59.7]} 2. Nf3 {[%clk 0:03:00.5]}
2... Nf6 {[%clk 0:03:00.1]} 3. c4 {[%clk 0:03:00.1]} 3... e6 {[%clk 0:03:00.3]}
4. Bg5 {[%clk 0:02:58.6]} 4... Be7 {[%clk 0:03:00]} 5. e3 {[%clk 0:02:57.9]}
5... O-O {[%clk 0:02:58.9]} 6. Qc2 {[%clk 0:02:58.1]} 6... c5 {[%clk 0:02:54.7]}
7. cxd5 {[%clk 0:02:54]} 7... Nxd5 {[%clk 0:02:53.4]} 8. Bxe7 {[%clk 0:02:52.6]}
8... Qxe7 {[%clk 0:02:53.4]} 9. Qxc5 {[%clk 0:02:51]} 9... Qxc5 {[%clk 0:02:48]}
10. dxc5 {[%clk 0:02:51.9]} 10... Nb4 {[%clk 0:02:47.2]} 11. Na3 {[%clk
0:02:48.1]} 11... b6 {[%clk 0:02:38]} 12. cxb6 {[%clk 0:02:26.8]} 12... axb6
{[%clk 0:02:38.9]} 13. Bb5 {[%clk 0:02:27]} 13... Bd7 {[%clk 0:02:25.2]} 14.
Bxd7 {[%clk 0:02:21.5]} 14... Nxd7 {[%clk 0:02:25.8]} 15. O-O {[%clk 0:02:21.7]}
15... Nc5 {[%clk 0:02:24.2]} 16. Rfd1 {[%clk 0:02:16.5]} 16... Rfc8 {[%clk
0:02:13.5]} 17. Nd4 {[%clk 0:02:09.4]} 17... Kf8 {[%clk 0:02:06.4]} 18. h4
{[%clk 0:02:04.3]} 18... h5 {[%clk 0:02:04.9]} 19. Nc4 {[%clk 0:01:55.3]} 19...
Rxa2 {[%clk 0:01:51.4]} 20. Rxa2 {[%clk 0:01:53.8]} 20... Nxa2 {[%clk
0:01:52.3]} 21. Nxb6 {[%clk 0:01:53.5]} 21... Rb8 {[%clk 0:01:51.5]} 22. Nc4
{[%clk 0:01:31.4]} 22... Rb4 {[%clk 0:01:49.5]} 23. Ra1 {[%clk 0:01:20.8]} 23...
Rxc4 {[%clk 0:01:42.4]} 24. Rxa2 {[%clk 0:01:20.7]} 24... g6 {[%clk 0:01:42.1]}
25. b3 {[%clk 0:01:16.7]} 25... Rc1+ {[%clk 0:01:38.7]} 26. Kh2 {[%clk
0:01:16.4]} 26... Rb1 {[%clk 0:01:39]} 27. Ra8+ {[%clk 0:01:07.5]} 27... Kg7
{[%clk 0:01:38.3]} 28. Rb8 {[%clk 0:01:07.9]} 28... e5 {[%clk 0:01:35.3]} 29.
Nc6 {[%clk 0:01:01.4]} 29... e4 {[%clk 0:01:20.4]} 30. b4 {[%clk 0:00:54.1]}
30... Nd3 {[%clk 0:01:20.5]} 31. Kg3 {[%clk 0:00:51.7]} 31... Rb2 {[%clk
0:01:13.5]} 32. f3 {[%clk 0:00:51.4]} 32... Ne1 {[%clk 0:01:09]} 33. fxe4 {[%clk
0:00:48.4]} 33... Rxg2+ {[%clk 0:01:05.5]} 34. Kf4 {[%clk 0:00:38.6]} 34... Nd3+
{[%clk 0:00:56.5]} 35. Kf3 {[%clk 0:00:38.7]} 35... Rb2 {[%clk 0:00:33.7]} 36.
b5 {[%clk 0:00:37.1]} 36... f6 {[%clk 0:00:25]} 37. Rb7+ {[%clk 0:00:36.3]}
37... Kh6 {[%clk 0:00:24.5]} 38. Ne7 {[%clk 0:00:34.2]} 38... g5 {[%clk
0:00:16.5]} 39. Nf5+ {[%clk 0:00:34]} 39... Kg6 {[%clk 0:00:16.7]} 40. Rg7#
{[%clk 0:00:34.4]} 1-0

[Event "Late-Titled-Tuesday-Blitz-September-26-2023"]
[Site "Chess.com"]
[Date "2023.09.26"]
[Round "5"]
[White "sergeikim"]
[Black "Bauman_Guy"]
[Result "0-1"]
[WhiteElo "2610"]
[BlackElo "2868"]
[TimeControl "180+1"]
[EndTime "14:54:17 PDT"]
[Termination "Bauman_Guy won by resignation"]

1. d4 {[%clk 0:03:00.4]} 1... Nf6 {[%clk 0:03:00]} 2. c4 {[%clk 0:03:00]} 2...
e6 {[%clk 0:03:00.4]} 3. Nc3 {[%clk 0:03:00.1]} 3... Bb4 {[%clk 0:03:00.7]} 4.
Qc2 {[%clk 0:03:00.2]} 4... d5 {[%clk 0:03:00]} 5. a3 {[%clk 0:03:00.4]} 5...
Bxc3+ {[%clk 0:03:00]} 6. Qxc3 {[%clk 0:03:01.3]} 6... dxc4 {[%clk 0:03:00.9]}
7. Qxc4 {[%clk 0:03:00.9]} 7... b6 {[%clk 0:03:01.4]} 8. Nf3 {[%clk 0:03:01.1]}
8... Ba6 {[%clk 0:03:01.2]} 9. Qc2 {[%clk 0:03:00.3]} 9... Nbd7 {[%clk
0:03:01.3]} 10. g3 {[%clk 0:03:00.4]} 10... c5 {[%clk 0:03:00.1]} 11. dxc5
{[%clk 0:02:59.4]} 11... Nxc5 {[%clk 0:02:58.1]} 12. b4 {[%clk 0:02:57.5]} 12...
Ncd7 {[%clk 0:02:46.1]} 13. Bg2 {[%clk 0:02:53.6]} 13... Rc8 {[%clk 0:02:46]}
14. Qb2 {[%clk 0:02:53.5]} 14... O-O {[%clk 0:02:38.7]} 15. O-O {[%clk
0:02:52.4]} 15... Ne4 {[%clk 0:02:38.8]} 16. Be3 {[%clk 0:02:48.9]} 16... Nc3
{[%clk 0:02:30.6]} 17. Rfe1 {[%clk 0:02:48.2]} 17... Nf6 {[%clk 0:02:30.5]} 18.
Bd4 {[%clk 0:02:41]} 18... Nfe4 {[%clk 0:02:28.1]} 19. Bf1 {[%clk 0:02:31.1]}
19... Qd5 {[%clk 0:02:01.6]} 20. Rac1 {[%clk 0:02:06.5]} 20... Na4 {[%clk
0:02:00.8]} 21. Qa1 {[%clk 0:02:04.8]} 21... f6 {[%clk 0:02:00.2]} 22. Be3
{[%clk 0:01:56.4]} 22... e5 {[%clk 0:01:53]} 23. Red1 {[%clk 0:01:53.9]} 23...
Qb3 {[%clk 0:01:43.2]} 24. Rxc8 {[%clk 0:01:30.8]} 24... Rxc8 {[%clk 0:01:42.3]}
25. Bh3 {[%clk 0:01:14.5]} 25... Bxe2 {[%clk 0:01:17.2]} 26. Rb1 {[%clk
0:01:10.4]} 26... Qd5 {[%clk 0:01:04.3]} 27. Bxc8 {[%clk 0:01:01.2]} 27... Bxf3
{[%clk 0:01:03.1]} 28. Rc1 {[%clk 0:00:50.2]} 28... Nac3 {[%clk 0:00:54.7]} 29.
Ba6 {[%clk 0:00:38.5]} 29... b5 {[%clk 0:00:53.8]} 30. Re1 {[%clk 0:00:28.2]}
30... Ne2+ {[%clk 0:00:45.5]} 31. Rxe2 {[%clk 0:00:27.8]} 31... Bxe2 {[%clk
0:00:46.4]} 32. Qc1 {[%clk 0:00:23.6]} 32... Bc4 {[%clk 0:00:44.8]} 33. a4
{[%clk 0:00:21.7]} 33... Nc3 {[%clk 0:00:34.7]} 34. Qxc3 {[%clk 0:00:17.9]}
34... Qd1+ {[%clk 0:00:34.5]} 35. Kg2 {[%clk 0:00:18.2]} 35... Bf1+ {[%clk
0:00:34.7]} 36. Kg1 {[%clk 0:00:15.1]} 36... Bh3+ {[%clk 0:00:34.7]} 0-1

[Event "Late-Titled-Tuesday-Blitz-September-26-2023"]
[Site "Chess.com"]
[Date "2023.09.26"]
[Round "5"]
[White "Beca95"]
[Black "Rutricks"]
[Result "1-0"]
[WhiteElo "2928"]
[BlackElo "2670"]
[TimeControl "180+1"]
[EndTime "14:54:23 PDT"]
[Termination "Beca95 won by checkmate"]

1. e4 {[%clk 0:03:00.9]} 1... g6 {[%clk 0:02:59.2]} 2. d4 {[%clk 0:02:59.8]}
2... Bg7 {[%clk 0:03:00.1]} 3. c4 {[%clk 0:02:59.6]} 3... d6 {[%clk 0:03:00]} 4.
Nc3 {[%clk 0:02:58.5]} 4... Nd7 {[%clk 0:03:00.5]} 5. Be2 {[%clk 0:02:54.1]}
5... e5 {[%clk 0:03:00.9]} 6. Nf3 {[%clk 0:02:53.1]} 6... Ngf6 {[%clk
0:03:00.8]} 7. Be3 {[%clk 0:02:46.2]} 7... O-O {[%clk 0:02:59.4]} 8. d5 {[%clk
0:02:45]} 8... a5 {[%clk 0:02:56.9]} 9. Nd2 {[%clk 0:02:44.3]} 9... Nc5 {[%clk
0:02:57.4]} 10. b3 {[%clk 0:02:42.5]} 10... Ne8 {[%clk 0:02:55.7]} 11. O-O
{[%clk 0:02:35.8]} 11... f5 {[%clk 0:02:55.2]} 12. f3 {[%clk 0:02:36.1]} 12...
f4 {[%clk 0:02:54.1]} 13. Bf2 {[%clk 0:02:35.5]} 13... g5 {[%clk 0:02:54.8]} 14.
a3 {[%clk 0:02:35.4]} 14... h5 {[%clk 0:02:47.1]} 15. Rb1 {[%clk 0:02:34]} 15...
Rf6 {[%clk 0:02:47]} 16. b4 {[%clk 0:02:33.4]} 16... Na6 {[%clk 0:02:47.6]} 17.
c5 {[%clk 0:02:32.6]} 17... Rg6 {[%clk 0:02:41.1]} 18. c6 {[%clk 0:02:31.5]}
18... g4 {[%clk 0:02:41.6]} 19. cxb7 {[%clk 0:02:26.3]} 19... Bxb7 {[%clk
0:02:42]} 20. fxg4 {[%clk 0:02:25.9]} 20... hxg4 {[%clk 0:02:42]} 21. Bxg4
{[%clk 0:02:24.9]} 21... axb4 {[%clk 0:02:31.2]} 22. axb4 {[%clk 0:02:23.4]}
22... Nf6 {[%clk 0:02:32.1]} 23. Be6+ {[%clk 0:02:21]} 23... Kh8 {[%clk
0:02:29.9]} 24. b5 {[%clk 0:02:20.8]} 24... Nc5 {[%clk 0:02:29.6]} 25. Bxc5
{[%clk 0:02:20.7]} 25... dxc5 {[%clk 0:02:29.3]} 26. Nc4 {[%clk 0:02:21]} 26...
Nh7 {[%clk 0:02:06.5]} 27. Bf5 {[%clk 0:02:12.2]} 27... Rh6 {[%clk 0:02:04.1]}
28. Rf3 {[%clk 0:01:46.2]} 28... Ng5 {[%clk 0:02:00.4]} 29. Rf2 {[%clk
0:01:45.4]} 29... Nf7 {[%clk 0:01:14.3]} 30. Rf3 {[%clk 0:01:44.9]} 30... Ng5
{[%clk 0:01:14.6]} 31. Rd3 {[%clk 0:01:44.8]} 31... Nf7 {[%clk 0:01:05.8]} 32.
Ra1 {[%clk 0:01:41.3]} 32... Rb8 {[%clk 0:00:49.6]} 33. Rh3 {[%clk 0:01:38.9]}
33... Bc8 {[%clk 0:00:40.4]} 34. Bxc8 {[%clk 0:01:37.2]} 34... Qxc8 {[%clk
0:00:40.3]} 35. Rxh6+ {[%clk 0:01:36.8]} 35... Nxh6 {[%clk 0:00:41.2]} 36. Qh5
{[%clk 0:01:35.5]} 36... f3 {[%clk 0:00:30.1]} 37. Qxf3 {[%clk 0:01:33.7]} 37...
Qd7 {[%clk 0:00:28.3]} 38. Qh3 {[%clk 0:01:31.6]} 38... Qe8 {[%clk 0:00:26.8]}
39. Ra6 {[%clk 0:01:28.9]} 39... Kh7 {[%clk 0:00:25.9]} 40. Re6 {[%clk
0:01:25.7]} 40... Qf7 {[%clk 0:00:20.9]} 41. Nxe5 {[%clk 0:01:22.8]} 41... Qf4
{[%clk 0:00:21.3]} 42. Ne2 {[%clk 0:00:47.4]} 42... Qd2 {[%clk 0:00:21.1]} 43.
Rxh6+ {[%clk 0:00:39.3]} 43... Bxh6 {[%clk 0:00:21.4]} 44. Qf5+ {[%clk
0:00:39.1]} 44... Kg8 {[%clk 0:00:18.4]} 45. Qf7+ {[%clk 0:00:38.3]} 45... Kh8
{[%clk 0:00:18.4]} 46. Ng6# {[%clk 0:00:38.9]} 1-0